bitfinex-derivatives/quotes_ETHF0:USTF0_20240920
["timestamp","ask_amount","ask_price","bid_price","bid_amount"]
[1726838299333,0.39439,2535.2,2534.9,0.39442]
[1726838299538,3.2078,2535.3,2535.1,0.39439]
[1726838299840,3.2078,2535.3,2535.2,0.39438]
[1726838300035,3.2078,2535.3,2534.8,5.25609]
[1726838300036,3.2078,2535.3,2534.8,4.27]
[1726838300428,3.2078,2535.3,2535.2,0.39438]
[1726838300835,3.2078,2535.3,2534.8,4.27]
[1726838301536,0.39439,2535.2,2534.9,0.39442]
[1726838301837,3.2078,2535.3,2535.0,0.3944]
[1726838302338,3.60217,2535.3,2535.0,0.39441]
[1726838302746,3.2078,2535.6,2535.2,4.27]
[1726838303035,3.6115,2535.9,2535.7,0.39429]
[1726838303240,3.2078,2535.9,2535.7,0.39429]
[1726838303431,3.2078,2535.9,2535.5,4.27]
[1726838303931,3.2078,2535.9,2535.8,0.39429]
[1726838304133,3.2078,2536.2,2535.6,3.2078]
[1726838304334,3.2078,2536.2,2536.0,0.39426]
[1726838304635,3.2078,2536.2,2536.1,0.39424]
[1726838304832,0.3793,2536.4,2536.1,0.39424]
[1726838305032,0.7735,2536.4,2536.0,0.39425]
[1726838305640,0.3793,2536.4,2536.2,0.39422]
[1726838305941,3.2078,2536.5,2536.4,0.3942]
[1726838306142,0.39418,2536.6,2536.3,4.27]
[1726838306331,3.2078,2536.5,2536.3,4.6642]
[1726838306536,0.39416,2536.7,2536.3,4.27]
[1726838306732,3.60194,2536.8,2536.4,0.39418]
[1726838306936,3.60194,2536.8,2536.3,4.6642]
[1726838306937,0.39415,2536.7,2536.3,4.6642]
[1726838307137,3.2078,2536.8,2536.5,0.39417]
[1726838307431,3.60194,2536.8,2536.3,4.27]
[1726838307751,3.2078,2536.8,2536.7,0.39415]
[1726838308042,3.2078,2536.8,2536.6,4.27]
[1726838308246,3.9424,2536.7,2536.3,4.27]
[1726838308443,3.2078,2536.8,2536.3,4.27]
[1726838309153,0.39418,2536.6,2536.3,4.66421]
[1726838309336,0.39416,2536.7,2536.4,0.39419]
[1726838309936,3.2078,2536.8,2536.3,4.27]
[1726838310142,0.39416,2536.7,2536.4,0.39419]
[1726838310341,3.2078,2536.8,2536.3,4.27]
[1726838310740,3.60199,2536.5,2535.9,4.27]
[1726838310940,3.2078,2536.5,2536.2,0.39422]
[1726838311143,0.3942,2536.4,2536.2,0.39422]
[1726838311350,0.39423,2536.2,2536.0,0.39425]
[1726838311544,0.39423,2536.2,2535.9,4.27]
[1726838311545,3.2078,2536.2,2535.9,4.27]
[1726838311748,0.39424,2536.1,2535.9,4.27]
[1726838311946,0.39424,2536.1,2535.8,0.39428]
[1726838312554,3.2078,2536.2,2535.6,4.27]
[1726838312850,0.39424,2536.1,2535.8,0.39428]
[1726838313052,3.60204,2536.2,2535.6,4.27]
[1726838313247,3.2078,2536.2,2535.6,4.27]
[1726838313446,3.2078,2536.2,2536.1,0.39424]
[1726838314048,3.2078,2536.2,2535.9,4.27]
[1726838314049,7.54523,2536.2,2535.9,4.27]
[1726838314352,3.2078,2536.2,2535.9,4.27]
[1726838314547,3.2078,2536.2,2535.9,4.66427]
[1726838314854,3.2078,2536.2,2536.0,0.39426]
[1726838315156,3.2078,2536.2,2535.9,4.27]
[1726838315350,3.60204,2536.2,2535.9,4.66427]
[1726838315546,3.2078,2536.2,2535.9,4.27]
[1726838315753,0.39422,2536.3,2536.0,0.39426]
[1726838316148,0.39422,2536.3,2536.0,0.39425]
[1726838316443,3.2078,2536.5,2535.9,4.27]
[1726838316657,3.2078,2536.5,2536.4,0.3942]
[1726838316860,0.39422,2536.3,2535.9,7.4778]
[1726838317057,3.2078,2536.5,2535.9,4.27]
[1726838317257,3.60199,2536.5,2536.2,0.39421]
[1726838317659,3.9424,2536.4,2536.0,0.39425]
[1726838317859,4.19328,2536.5,2536.1,0.39423]
[1726838318065,0.39421,2536.4,2536.1,0.39423]
[1726838318254,3.60199,2536.5,2535.9,4.27]
[1726838318454,3.60199,2536.5,2536.3,0.3942]
[1726838318650,0.3942,2536.4,2536.3,0.3942]
[1726838318865,4.3366,2536.4,2536.2,0.39422]
[1726838319166,0.3942,2536.4,2536.2,0.39422]
[1726838319460,3.60199,2536.5,2536.3,0.39421]
[1726838319670,3.2078,2536.5,2536.3,4.27]
[1726838319868,3.2078,2536.5,2536.4,0.3942]
[1726838320561,3.2078,2536.9,2536.8,0.39413]
[1726838320953,7.54352,2536.9,2536.7,4.66414]
[1726838321157,3.2078,2536.9,2536.4,4.27]
[1726838321359,0.39414,2536.8,2536.6,0.39416]
[1726838321573,0.39414,2536.8,2536.5,0.39417]
[1726838321870,0.39414,2536.8,2536.6,0.39416]
[1726838322059,0.39414,2536.8,2536.4,4.27]
[1726838322258,0.39414,2536.8,2536.5,0.39417]
[1726838322464,0.39414,2536.8,2536.5,0.39418]
[1726838322762,0.39413,2536.8,2536.5,0.39418]
[1726838322967,3.60193,2536.9,2536.4,4.27]
[1726838323167,3.60193,2536.9,2536.6,0.39416]
[1726838323370,3.60193,2536.9,2536.4,4.27]
[1726838323371,0.39415,2536.7,2536.4,4.27]
[1726838323671,0.3942,2536.4,2536.2,0.39422]
[1726838323858,3.2078,2536.6,2536.0,4.27]
[1726838324064,0.3942,2536.4,2536.2,0.39422]
[1726838324269,3.2078,2536.6,2536.3,0.39421]
[1726838324270,0.39419,2536.5,2536.3,0.39421]
[1726838324471,3.2078,2536.6,2536.4,4.27]
[1726838324669,0.39416,2536.7,2536.5,0.39418]
[1726838324862,4.19311,2536.9,2536.5,0.39417]
[1726838325066,0.39415,2536.8,2536.5,0.39417]
[1726838325267,0.39415,2536.8,2536.4,4.27]
[1726838325268,0.39415,2536.8,2536.6,0.39415]
[1726838325474,0.39415,2536.8,2536.4,4.27]
[1726838325475,0.39415,2536.8,2536.5,0.39417]
[1726838325670,3.2078,2536.9,2536.5,0.39417]
[1726838325875,0.39416,2536.7,2536.5,0.39418]
[1726838326081,0.39417,2536.6,2536.4,4.66419]
[1726838326381,0.39416,2536.6,2536.4,4.66419]
[1726838326771,4.19311,2536.9,2536.5,0.39418]
[1726838326772,0.39416,2536.7,2536.5,0.39418]
[1726838327073,3.2078,2536.9,2536.4,4.27]
[1726838327275,3.60192,2536.9,2536.7,0.39414]
[1726838327468,3.2078,2536.9,2536.7,4.27]
[1726838327663,3.60192,2536.9,2536.7,4.66414]
[1726838327863,3.60192,2536.9,2536.4,1.36398]
[1726838327864,3.2078,2536.9,2536.4,4.6485]
[1726838328077,0.39416,2536.7,2536.5,0.39417]
[1726838328370,4.19311,2536.9,2536.6,0.39416]
[1726838328371,0.39415,2536.8,2536.6,0.39416]
[1726838328576,0.39415,2536.8,2536.7,0.39415]
[1726838328784,3.2078,2536.9,2536.8,0.39413]
[1726838329165,3.2078,2536.9,2536.8,4.66413]
[1726838329373,4.121,2537.7,2536.8,16.18228]
[1726838329589,3.2078,2537.8,2537.6,0.394]
[1726838329781,7.54258,2537.8,2537.7,4.27]
[1726838330077,3.60178,2537.8,2537.6,3.79]
[1726838330273,0.39399,2537.7,2537.6,3.79]
[1726838330672,3.9408,2537.7,2537.3,3.79]
[1726838330871,3.60183,2537.5,2537.3,3.79]
[1726838331375,4.33484,2537.4,2537.3,3.79]
[1726838331573,0.39408,2537.2,2537.0,3.79]
[1726838331876,0.39407,2537.2,2536.6,3.5885]
[1726838332179,0.39407,2537.3,2537.0,0.3941]
[1726838332378,0.39406,2537.3,2536.9,4.26]
[1726838332575,3.2078,2537.2,2536.6,4.6407]
[1726838332881,3.2078,2537.2,2536.9,0.39411]
[1726838333072,3.2078,2537.2,2537.1,0.39409]
[1726838333270,3.2078,2537.5,2536.9,5.24529]
[1726838333576,0.39402,2537.5,2537.3,4.26]
[1726838334475,0.39402,2537.6,2537.3,4.65405]
[1726838334877,3.2078,2537.8,2537.3,4.26]
[1726838335067,3.2078,2537.8,2537.6,4.65399]
[1726838335374,3.2078,2537.8,2537.6,4.26]
[1726838335375,3.60179,2537.8,2537.6,4.26]
[1726838335584,3.60179,2537.8,2537.6,4.65401]
[1726838335585,3.2078,2537.8,2537.6,4.65401]
[1726838336076,3.2078,2537.8,2537.6,4.654]
[1726838336284,3.2078,2537.8,2537.3,5.03924]
[1726838336475,3.2078,2537.8,2537.3,4.6452]
[1726838336779,3.60179,2537.8,2537.5,0.39402]
[1726838336980,3.2078,2537.8,2537.3,4.6452]
[1726838337278,3.60179,2537.8,2537.5,0.39402]
[1726838337581,3.2078,2537.8,2537.3,4.6452]
[1726838337784,3.2078,2537.8,2537.6,0.394]
[1726838337970,3.60179,2537.8,2537.5,0.39401]
[1726838338273,3.2078,2537.8,2537.2,0.3993]
[1726838338476,3.2078,2537.5,2536.9,4.26]
[1726838338676,0.39405,2537.4,2537.1,0.39409]
[1726838338874,0.98507,2537.6,2537.0,0.39409]
[1726838339076,0.98507,2537.6,2536.9,4.26]
[1726838339381,0.39405,2537.4,2537.1,0.39408]
[1726838339579,0.39404,2537.4,2537.1,0.39408]
[1726838339777,3.60183,2537.5,2537.2,0.39407]
[1726838340080,3.60183,2537.5,2536.9,4.26]
[1726838340081,3.2078,2537.5,2536.9,4.26]
[1726838340269,3.60183,2537.5,2537.2,0.39406]
[1726838340581,3.2078,2537.5,2537.3,0.39405]
[1726838340787,3.2078,2537.8,2536.8,1.75652]
[1726838341082,3.2078,2537.8,2537.2,4.26]
[1726838341268,3.2078,2537.5,2537.0,3.60189]
[1726838341468,0.39405,2537.4,2537.0,3.60189]
[1726838341693,0.39405,2537.4,2537.1,0.39409]
[1726838342185,0.39403,2537.5,2537.2,0.39407]
[1726838342477,4.19277,2537.8,2537.0,3.2078]
[1726838342682,3.2078,2537.5,2537.3,0.39404]
[1726838342875,3.2078,2537.8,2537.3,0.98515]
[1726838343076,4.57282,2538.2,2537.6,4.654]
[1726838343277,0.39396,2537.9,2537.6,4.654]
[1726838343481,0.39396,2538.0,2537.7,0.39399]
[1726838343686,0.39396,2537.9,2537.6,4.26]
[1726838343882,0.39398,2537.8,2537.6,4.26]
[1726838344075,0.39398,2537.8,2537.6,4.65401]
[1726838344381,0.39398,2537.8,2537.5,0.39402]
[1726838344778,3.60177,2537.9,2537.7,0.39399]
[1726838344970,0.39398,2537.8,2537.3,0.4013]
[1726838345175,0.39396,2538.0,2537.6,4.26]
[1726838345382,4.57282,2538.2,2537.6,4.26]
[1726838345587,3.2078,2537.9,2537.7,0.39399]
[1726838345780,0.39398,2537.8,2537.6,4.26]
[1726838345987,0.39397,2537.9,2537.6,4.654]
[1726838346176,3.60175,2538.1,2537.8,0.39397]
[1726838346377,3.60175,2538.1,2537.6,4.26]
[1726838346576,0.39395,2538.0,2537.8,0.39398]
[1726838346877,0.39395,2538.0,2537.7,0.39398]
[1726838347078,0.39395,2538.0,2537.6,7.4678]
[1726838347079,3.2078,2538.1,2537.6,7.4678]
[1726838347285,3.2078,2538.1,2537.9,0.39396]
[1726838347474,3.94,2538.0,2537.9,0.39396]
[1726838347678,3.2078,2538.1,2538.0,0.39395]
[1726838347875,7.1478,2538.1,2538.0,0.39395]
[1726838348076,7.1478,2538.1,2537.9,4.26]
[1726838348277,7.1478,2538.1,2537.9,4.65395]
[1726838348482,3.2078,2538.1,2538.0,0.39395]
[1726838348876,7.1478,2538.1,2537.9,4.26]
[1726838349083,3.2078,2538.1,2538.0,0.39395]
[1726838349491,1.9674,2538.1,2538.0,2.36369]
[1726838349693,4.121,2538.7,2538.3,0.3939]
[1726838349991,0.39386,2538.6,2538.4,0.39388]
[1726838350191,7.3288,2539.2,2538.3,5.24476]
[1726838350486,0.39385,2538.7,2538.5,0.39386]
[1726838350696,0.39385,2538.7,2538.4,0.3831]
[1726838350881,0.39383,2538.8,2538.4,0.3831]
[1726838351083,8.31323,2539.2,2538.8,0.39382]
[1726838351383,0.39384,2538.7,2538.6,4.26]
[1726838351584,0.98476,2538.3,2537.9,4.65396]
[1726838351788,0.98476,2538.3,2537.9,4.26]
[1726838351789,0.39395,2538.0,2537.9,4.26]
[1726838351980,0.39395,2538.1,2537.9,0.39395]
[1726838352183,0.98484,2538.1,2537.8,3.78]
[1726838352485,0.39392,2538.2,2538.0,0.39394]
[1726838352683,3.2078,2538.4,2538.2,0.39391]
[1726838352988,0.3939,2538.3,2538.1,4.17392]
[1726838353181,3.60169,2538.4,2538.2,0.39392]
[1726838353381,0.3939,2538.3,2538.1,3.78]
[1726838353582,0.39395,2538.0,2537.9,3.78]
[1726838353784,0.39395,2538.0,2537.6,4.1631]
[1726838354291,0.39395,2538.0,2537.9,3.78]
[1726838354497,3.2078,2538.4,2538.1,0.39392]
[1726838354498,0.39391,2538.3,2538.1,0.39392]
[1726838354794,0.39392,2538.2,2538.1,0.39393]
[1726838355185,0.39393,2538.1,2538.0,0.39394]
[1726838355384,3.2078,2538.4,2537.9,3.78]
[1726838355590,3.2078,2538.8,2538.2,3.78]
[1726838355790,0.39389,2538.4,2538.2,3.78]
[1726838355986,0.98464,2538.6,2538.2,4.1739]
[1726838356192,0.3939,2538.4,2538.2,3.78]
[1726838356389,0.3939,2538.4,2538.2,4.17391]
[1726838356688,0.39388,2538.4,2538.3,0.39389]
[1726838356891,0.39389,2538.4,2538.2,3.78]
[1726838357096,0.3939,2538.3,2538.2,3.78]
[1726838357500,0.39389,2538.4,2538.2,3.78]
[1726838357798,0.39388,2538.4,2538.3,0.39389]
[1726838358306,0.39385,2538.7,2538.2,3.78]
[1726838358597,0.39387,2538.5,2538.4,0.39387]
[1726838358989,4.19238,2538.8,2538.2,3.78]
[1726838359195,0.39387,2538.5,2538.2,3.78]
[1726838359497,0.39386,2538.6,2538.4,0.39388]
[1726838359702,0.39387,2538.5,2538.4,0.39388]
[1726838360497,0.39389,2538.4,2538.2,3.78]
[1726838360796,0.39388,2538.5,2538.4,0.39388]
[1726838360998,4.19238,2538.8,2538.2,3.78]
[1726838360999,3.2078,2538.8,2538.2,3.78]
[1726838361184,0.39384,2538.7,2538.6,4.17385]
[1726838361685,4.33304,2538.7,2538.6,4.17385]
[1726838362093,4.33304,2538.7,2538.6,3.78]
[1726838362294,0.3939,2538.3,2538.2,3.78]
[1726838362795,0.3939,2538.4,2538.3,0.3939]
[1726838363095,0.39387,2538.5,2538.4,0.39388]
[1726838363394,4.19239,2538.8,2538.4,0.39388]
[1726838363593,0.39385,2538.7,2538.6,0.39385]
[1726838363994,3.9392,2538.7,2538.5,3.78]
[1726838364188,1.75324,2538.9,2538.5,3.78]
[1726838364388,0.39385,2538.7,2538.6,0.39385]
[1726838364795,1.75324,2538.9,2538.6,0.39385]
[1726838364994,0.39385,2538.6,2538.5,3.78]
[1726838365295,0.3939,2538.4,2538.2,3.78]
[1726838365502,0.3939,2538.3,2538.2,3.78]
[1726838366104,4.19249,2538.5,2538.2,4.17391]
[1726838366105,3.2078,2538.5,2538.2,4.17391]
[1726838366298,0.3939,2538.4,2538.2,3.78]
[1726838366493,0.3939,2538.3,2538.2,3.78]
[1726838366903,0.3939,2538.3,2538.2,4.17392]
[1726838367097,0.3939,2538.3,2538.2,3.78]
[1726838367299,0.3939,2538.4,2538.2,4.1739]
[1726838367588,0.3939,2538.3,2538.2,3.78]
[1726838367994,3.2078,2538.5,2538.2,3.78]
[1726838368296,3.2078,2538.5,2537.9,3.78]
[1726838368492,4.1926,2538.2,2537.7,0.3895]
[1726838368694,3.2078,2537.8,2537.3,3.78]
[1726838368891,4.19277,2537.8,2537.3,4.17404]
[1726838369103,4.19277,2537.8,2537.3,3.78]
[1726838369299,0.39402,2537.6,2537.3,4.17404]
[1726838369599,0.39402,2537.6,2537.3,4.17405]
[1726838369802,0.39401,2537.6,2537.4,0.39404]
[1726838370308,0.39403,2537.5,2537.3,4.17404]
[1726838370610,3.2078,2537.8,2537.3,3.78]
[1726838371201,3.2078,2537.8,2537.6,3.78]
[1726838371499,3.2078,2538.3,2537.7,0.98499]
[1726838371702,4.121,2538.5,2538.3,3.78]
[1726838371703,0.39388,2538.4,2538.3,3.78]
[1726838372208,4.33308,2538.4,2538.3,3.78]
[1726838372702,0.39398,2537.8,2537.7,4.167]
[1726838372911,1.37893,2537.8,2537.7,3.78]
[1726838373101,0.39402,2537.6,2537.4,4.17403]
[1726838373304,0.39399,2537.7,2537.5,0.39401]
[1726838373607,0.394,2537.7,2537.5,0.39402]
[1726838373808,0.98491,2537.9,2537.4,4.17403]
[1726838373809,4.19271,2537.9,2537.4,4.17403]
[1726838374014,3.2078,2537.9,2537.6,0.394]
[1726838374205,1.2165,2538.1,2537.7,3.78]
[1726838374507,0.3941,2537.0,2536.9,3.2078]
[1726838374694,0.3941,2537.0,2536.1,2.55808161]
[1726838374695,3.2078,2537.0,2536.4,0.4113]
[1726838374901,3.2078,2537.0,2536.1,3.78]
[1726838374902,0.39418,2536.5,2536.1,3.78]
[1726838375104,0.39423,2536.3,2536.1,3.78]
[1726838375301,0.39423,2536.2,2536.1,3.78]
[1726838375502,0.05398538,2536.2,2535.8,4.1913]
[1726838376207,0.39425,2536.1,2535.8,4.1913]
[1726838376416,0.98551,2536.4,2535.8,4.58558]
[1726838376606,0.05398538,2536.0,2535.8,4.1913]
[1726838376998,0.05398538,2536.0,2535.8,4.58558]
[1726838377517,0.05398538,2535.9,2535.8,4.1913]
[1726838377811,0.05398538,2535.9,2535.8,4.58559]
[1726838378010,0.44825538,2535.9,2535.8,4.1913]
[1726838378200,0.05398538,2535.9,2535.8,3.78]
[1726838378409,4.39145538,2535.9,2535.8,3.78]
[1726838378610,3.99718538,2535.9,2535.8,3.78]
[1726838378900,0.05398538,2535.9,2535.8,4.17429]
[1726838379106,3.2078,2536.8,2536.3,0.39421]
[1726838379299,3.60194,2536.8,2536.5,3.78]
[1726838379504,0.39416,2536.7,2536.5,3.78]
[1726838380001,0.39415,2536.7,2536.5,3.78]
[1726838381313,3.2078,2536.8,2536.5,3.78]
[1726838381511,0.39415,2536.7,2536.5,3.78]
[1726838382011,0.39416,2536.6,2536.5,3.78]
[1726838382814,0.39421,2536.4,2536.0,0.78425]
[1726838383003,0.3942,2536.4,2536.1,0.39424]
[1726838383207,0.98548,2536.5,2536.0,0.39]
[1726838383502,0.9855,2536.4,2536.0,0.39]
[1726838383709,0.39424,2536.1,2536.0,0.39]
[1726838383909,0.39424,2536.2,2536.0,0.39]
[1726838384209,0.9855,2536.4,2536.0,0.39]
[1726838384411,0.39423,2536.2,2536.0,0.39]
[1726838384605,0.39422,2536.3,2536.0,0.78425]
[1726838384800,0.39422,2536.3,2536.0,0.39]
[1726838385107,3.2078,2536.5,2536.0,0.39]
[1726838385314,0.39417,2536.6,2536.3,0.39421]
[1726838385610,4.33657,2536.6,2536.3,0.39421]
[1726838385806,4.33658,2536.5,2536.2,4.17422]
[1726838386010,4.121,2536.7,2536.2,3.78]
[1726838386213,0.39415,2536.7,2536.5,3.78]
[1726838386811,0.39416,2536.6,2536.5,3.78]
[1726838388014,0.39414,2536.8,2536.5,4.17417]
[1726838388216,3.2078,2536.9,2536.5,3.78]
[1726838388509,4.121,2537.1,2536.8,3.78]
[1726838388710,3.2078,2537.2,2536.8,3.78]
[1726838388913,0.39409,2537.1,2536.9,0.39411]
[1726838389218,0.39406,2537.3,2536.8,3.78]
[1726838389414,0.79145,2537.4,2537.2,3.78]
[1726838389623,0.3974,2537.4,2537.2,3.78]
[1726838389818,0.39405,2537.4,2537.2,3.78]
[1726838390117,3.2078,2537.5,2537.2,3.78]
[1726838390312,3.2078,2537.5,2537.4,3.78]
[1726838390511,1.38686,2537.8,2537.4,3.78]
[1726838390716,0.39402,2537.6,2537.4,3.78]
[1726838391212,0.39402,2537.5,2537.4,3.78]
[1726838391412,0.39402,2537.5,2537.0,3.5915]
[1726838391413,4.19283,2537.6,2537.1,3.78]
[1726838391621,0.39407,2537.3,2537.1,3.78]
[1726838391812,0.39407,2537.3,2537.1,4.17409]
[1726838392314,0.4019,2537.8,2537.1,3.78]
[1726838392523,3.2078,2537.9,2537.4,3.78]
[1726838392711,0.39399,2537.8,2537.5,0.39401]
[1726838392907,3.2078,2537.9,2537.8,0.39398]
[1726838393109,4.121,2538.1,2537.8,0.39397]
[1726838393418,3.2078,2538.3,2537.7,4.17399]
[1726838393614,0.39396,2538.0,2537.8,0.3934]
[1726838394421,0.39396,2537.9,2537.8,0.3934]
[1726838394615,3.2078,2538.3,2537.5,3.78]
[1726838394616,3.2078,2538.0,2537.5,3.78]
[1726838394821,0.394,2537.7,2537.5,3.78]
[1726838395116,3.2078,2537.7,2537.5,3.78]
[1726838395323,0.39401,2537.6,2537.5,3.78]
[1726838395515,0.39399,2537.8,2537.6,0.39401]
[1726838395718,0.39397,2537.9,2537.7,0.39399]
[1726838396019,3.2078,2538.0,2537.5,3.78]
[1726838396213,0.39397,2537.9,2537.7,0.39399]
[1726838396514,0.39397,2537.9,2537.5,3.78]
[1726838396515,0.39397,2537.9,2537.6,0.394]
[1726838396720,0.39399,2537.8,2537.6,0.394]
[1726838397517,3.2078,2538.0,2537.7,3.78]
[1726838397713,3.2078,2538.0,2537.8,0.79586]
[1726838397909,3.2078,2538.0,2537.9,0.39396]
[1726838399021,3.2078,2538.0,2537.8,0.79587]
[1726838399322,3.2078,2538.0,2537.8,0.4019]
[1726838399513,3.2078,2538.0,2537.8,0.79587]
[1726838400216,3.2078,2538.0,2537.8,0.4019]
[1726838400518,4.33396,2537.9,2537.8,0.4019]
[1726838400717,3.94,2537.9,2537.8,0.4019]
[1726838401023,3.2078,2538.0,2537.8,4.1819]
[1726838401317,3.2078,2538.0,2537.9,0.39396]
[1726838402417,5.47867,2538.6,2537.8,4.1819]
[1726838402623,0.39394,2538.1,2537.9,0.39395]
[1726838402931,0.39395,2538.0,2537.8,4.57587]
[1726838403122,0.39394,2538.1,2537.8,4.57587]
[1726838403324,0.39396,2537.9,2537.8,0.4019]
[1726838403715,0.39399,2537.7,2537.6,0.3942]
[1726838403922,1.37334,2538.1,2537.6,0.394]
[1726838404219,0.39398,2537.8,2537.5,4.17401]
[1726838404419,0.39399,2537.8,2537.5,4.17402]
[1726838404632,0.39401,2537.6,2537.2,3.6169]
[1726838404921,0.98495,2537.9,2537.3,0.39405]
[1726838405117,0.39401,2537.6,2537.3,0.39405]
[1726838405319,0.394,2537.7,2537.3,0.39405]
[1726838405525,3.2078,2538.0,2537.4,4.17403]
[1726838405526,0.39399,2537.8,2537.4,4.17403]
[1726838405825,3.2078,2538.0,2537.4,3.78]
[1726838406019,3.2078,2537.7,2537.2,3.6169]
[1726838406531,3.2078,2537.7,2537.2,4.01097]
[1726838406729,0.39403,2537.5,2537.2,3.6169]
[1726838407024,0.39403,2537.5,2537.2,4.01097]
[1726838407228,0.39403,2537.5,2537.2,0.80317]
[1726838407722,3.2078,2537.7,2537.3,0.39405]
[1726838408025,3.60181,2537.7,2537.3,0.39405]
[1726838408226,0.39401,2537.7,2537.3,0.39405]
[1726838408426,0.39401,2537.6,2537.2,0.4091]
[1726838408624,4.58116,2538.1,2537.4,3.78]
[1726838408822,0.39397,2537.9,2537.7,3.78]
[1726838409014,0.39398,2537.8,2537.7,3.78]
[1726838410031,7.1486,2537.8,2537.4,3.78]
[1726838410327,0.39401,2537.6,2537.4,3.78]
[1726838410524,3.2078,2537.8,2537.4,4.17404]
[1726838410720,0.98491,2537.9,2537.4,3.78]
[1726838410915,0.39401,2537.7,2537.4,4.17403]
[1726838411523,0.39399,2537.7,2537.5,0.39402]
[1726838411727,3.60172,2538.2,2537.6,7.97281]
[1726838411936,7.7182,2538.6,2538.1,0.39392]
[1726838412226,7.7182,2538.6,2538.0,3.78]
[1726838412227,0.98468,2538.5,2538.0,4.17394]
[1726838412431,0.98468,2538.5,2538.0,3.78]
[1726838412728,0.98468,2538.5,2537.7,0.3765]
[1726838412729,7.7182,2538.6,2538.3,3.78]
[1726838412929,3.5972,2538.6,2538.3,3.78]
[1726838413227,0.3939,2538.3,2538.0,4.1686]
[1726838413424,0.3939,2538.3,2538.0,4.56254]
[1726838413931,0.3939,2538.3,2538.0,4.1686]
[1726838414233,0.3939,2538.3,2538.0,4.56253]
[1726838414424,0.3939,2538.3,2538.1,0.39393]
[1726838414831,0.39389,2538.4,2538.2,0.39391]
[1726838415025,3.5972,2538.6,2538.0,4.1686]
[1726838415224,3.5972,2538.6,2538.5,0.39387]
[1726838415225,3.2078,2538.6,2538.5,0.39387]
[1726838415524,0.39383,2538.8,2538.5,3.78]
[1726838415735,9.09517,2539.1,2538.5,3.78]
[1726838415923,9.09517,2539.1,2538.3,4.1681]
[1726838415924,0.39385,2538.6,2538.3,4.1681]
[1726838416119,0.39386,2538.6,2538.3,4.1681]
[1726838416437,0.39384,2538.7,2538.4,0.39388]
[1726838416729,0.98453,2538.9,2538.3,4.1681]
[1726838416730,3.2078,2538.8,2538.3,4.1681]
[1726838416931,0.98466,2538.6,2538.1,0.39393]
[1726838417123,0.39391,2538.3,2538.0,4.1686]
[1726838417424,3.2078,2538.8,2538.0,4.1686]
[1726838417425,7.3288,2538.8,2538.0,4.1686]
[1726838417616,7.3288,2538.8,2537.9,3.2078]
[1726838417617,0.39397,2537.9,2537.7,4.17399]
[1726838417818,3.2078,2538.4,2537.8,0.39397]
[1726838417819,0.39395,2538.0,2537.8,0.39397]
[1726838418025,0.98482,2538.2,2537.7,3.78]
[1726838418026,0.39397,2537.9,2537.7,3.78]
[1726838418533,0.39395,2538.0,2537.8,0.39398]
[1726838419120,4.19265,2538.1,2537.6,3.2078]
[1726838419323,0.39399,2537.8,2537.6,3.6018]
[1726838419833,0.39399,2537.8,2537.6,3.60181]
[1726838420027,0.98487,2538.0,2537.6,3.2078]
[1726838420225,0.39399,2537.8,2537.6,3.6018]
[1726838420431,0.39401,2537.6,2537.5,0.3762]
[1726838421025,0.98497,2537.8,2537.5,0.3762]
[1726838421223,0.394,2537.7,2537.5,0.3762]
[1726838421525,0.39398,2537.8,2537.6,0.394]
[1726838421824,0.39397,2537.9,2537.7,0.39399]
[1726838422433,0.7851,2538.3,2537.7,4.76498]
[1726838422736,1.17901,2538.3,2538.1,0.39393]
[1726838423124,5.11901,2538.3,2538.1,0.39393]
[1726838423330,0.39392,2538.2,2538.0,4.17394]
[1726838423528,5.10569,2538.5,2538.1,0.39393]
[1726838423830,0.39391,2538.3,2538.0,3.78]
[1726838424425,0.3939,2538.4,2538.2,0.39392]
[1726838424626,0.3939,2538.3,2538.2,0.39392]
[1726838424828,0.98466,2538.6,2538.2,0.39392]
[1726838425120,0.3939,2538.3,2538.1,0.39392]
[1726838425527,0.98469,2538.5,2538.1,0.39392]
[1726838425726,0.98469,2538.5,2538.1,0.39393]
[1726838426037,0.39392,2538.3,2538.1,0.39393]
[1726838426238,0.39392,2538.2,2538.1,0.39393]
[1726838426734,0.39391,2538.3,2538.0,3.78]
[1726838426927,4.19242,2538.7,2538.1,0.39393]
[1726838426928,0.39388,2538.4,2538.1,0.39393]
[1726838427132,0.39391,2538.3,2538.1,0.39393]
[1726838427330,0.98466,2538.6,2538.2,0.39391]
[1726838427532,0.3939,2538.3,2538.0,3.78]
[1726838427828,0.39392,2538.2,2538.0,4.17394]
[1726838428028,0.39392,2538.2,2538.1,3.46393]
[1726838428231,0.39392,2538.2,2538.1,3.07]
[1726838428935,0.39392,2538.2,2538.1,3.46393]
[1726838429125,0.39392,2538.2,2538.1,3.07]
[1726838430134,0.39398,2537.8,2537.7,3.07]
[1726838430340,0.394,2537.7,2537.5,3.4462]